bitfinex/quotes_BTCUSD_20250204
["timestamp","ask_amount","ask_price","bid_price","bid_amount"]
[1738675382881,0.150878,99418.0,99417.0,0.00022428]
[1738675383117,0.25326306,99418.0,99417.0,0.00022428]
[1738675383680,0.25832781,99418.0,99417.0,0.00022428]
[1738675385475,0.47439369,99418.0,99417.0,0.00022428]
[1738675385685,0.40832781,99418.0,99417.0,0.00022428]
[1738675385911,0.12139675,99418.0,99417.0,0.00022428]
[1738675388733,0.00506475,99418.0,99417.0,0.02322428]
[1738675389137,0.01361698,99419.0,99417.0,0.02322428]
[1738675389349,0.13597266,99430.0,99417.0,0.02322428]
[1738675389350,0.13597266,99450.0,99417.0,0.02443125]
[1738675389565,0.00493735,99418.0,99417.0,0.17410328]
[1738675389770,0.15085,99437.0,99422.0,0.023]
[1738675389975,0.150851,99436.0,99422.0,0.023]
[1738675390155,0.00496077,99436.0,99422.0,0.023]
[1738675390358,0.00496077,99436.0,99423.0,0.023]
[1738675390565,0.13597266,99433.0,99417.0,0.00022428]
[1738675390697,0.10238506,99432.0,99417.0,0.00122428]
[1738675390905,0.150867,99425.0,99417.0,0.02422428]
[1738675391150,0.150867,99425.0,99417.0,0.02322428]
[1738675391357,0.00500063,99424.0,99419.0,0.023]
[1738675391500,0.00500063,99424.0,99423.0,0.023]
[1738675391965,0.25324106,99432.0,99418.0,0.150877]
[1738675392207,0.00500063,99424.0,99423.0,0.023]
[1738675392374,0.201124,99442.0,99417.0,0.02322428]
[1738675392604,0.150846,99439.0,99426.0,0.023]
[1738675392931,0.150849,99437.0,99426.0,0.023]
[1738675393207,0.150849,99437.0,99424.0,0.023]
[1738675393208,0.25323406,99437.0,99424.0,0.023]
[1738675393636,0.10238506,99437.0,99420.0,0.023]
[1738675393835,0.10238506,99437.0,99418.0,0.001]
[1738675393836,0.150857,99432.0,99418.0,0.001]
[1738675394042,0.00500063,99436.0,99425.0,0.00022428]
[1738675394169,0.150854,99434.0,99425.0,0.00022428]
[1738675394385,0.351985,99436.0,99425.0,0.00022428]
[1738675394587,0.150853,99434.0,99425.0,0.00022428]
[1738675395167,0.00500063,99433.0,99425.0,0.00022428]
[1738675395423,0.00500063,99433.0,99426.0,0.01740993]
[1738675395626,0.00500063,99433.0,99425.0,0.00022428]
[1738675395949,0.00500063,99432.0,99425.0,0.00022428]
[1738675396355,0.15085,99436.0,99425.0,0.00022428]
[1738675396492,0.00500063,99431.0,99425.0,0.00022428]
[1738675396698,0.10238506,99437.0,99425.0,0.00022428]
[1738675396918,0.00500063,99430.0,99426.0,0.023]
[1738675397275,0.00500063,99429.0,99426.0,0.023]
[1738675397527,0.30351806,99437.0,99426.0,0.023]
[1738675397528,0.150854,99434.0,99426.0,0.023]
[1738675397772,0.131854,99434.0,99426.0,0.023]
[1738675398040,0.00500063,99433.0,99426.0,0.023]
[1738675398443,0.00500063,99433.0,99426.0,0.05405822]
[1738675398739,0.001,99429.0,99426.0,0.05405822]
[1738675398945,0.00500063,99432.0,99426.0,0.05405822]
[1738675399158,0.150855,99433.0,99425.0,0.00022428]
[1738675399362,0.00500063,99431.0,99425.0,0.00022428]
[1738675399607,0.150855,99433.0,99425.0,0.00022428]
[1738675400013,0.00500063,99430.0,99425.0,0.00022428]
[1738675400213,0.00500063,99430.0,99426.0,0.023]
[1738675400418,0.00500063,99430.0,99429.0,0.023]
[1738675400629,0.00500063,99430.0,99429.0,0.0503694]
[1738675400824,0.00500063,99430.0,99429.0,0.023]
[1738675401034,0.150849,99438.0,99428.0,0.023]
[1738675401295,0.00502861,99430.0,99428.0,0.023]
[1738675401625,0.01411844,99444.0,99428.0,0.023]
[1738675401828,0.00502861,99429.0,99428.0,0.02208638]
[1738675402030,0.10238506,99444.0,99428.0,0.02208638]
[1738675402241,0.00502861,99429.0,99428.0,0.02208638]
[1738675402442,0.150866,99426.0,99417.0,0.07624032]
[1738675402630,0.201155,99426.0,99390.0,0.00022428]
[1738675402828,0.13597266,99420.0,99399.0,0.0494]
[1738675403075,0.08338506,99419.0,99399.0,0.0494]
[1738675403267,0.08338506,99419.0,99390.0,0.00022428]
[1738675403466,0.00501935,99418.0,99391.0,0.00120715]
[1738675403668,0.01396076,99426.0,99392.0,0.13042951]
[1738675403841,0.150873,99421.0,99393.0,0.20242801]
[1738675404075,0.15,99423.0,99408.0,0.023]
[1738675404265,0.00499739,99420.0,99396.0,0.201215]
[1738675404589,0.00496617,99422.0,99417.0,0.023]
[1738675404798,0.150863,99428.0,99417.0,0.023]
[1738675404940,0.150866,99426.0,99415.0,0.023]
[1738675405173,0.10735123,99427.0,99413.0,0.173885]
[1738675405367,0.10735123,99427.0,99415.0,0.150882]
[1738675405368,0.10238506,99427.0,99415.0,0.150882]
[1738675405573,0.00496617,99426.0,99404.0,0.023]
[1738675405791,0.00496617,99426.0,99406.0,0.224195]
[1738675406023,0.00496617,99426.0,99417.0,0.001]
[1738675406232,0.00496617,99426.0,99419.0,0.023]
[1738675406401,0.00496617,99426.0,99421.0,0.023]
[1738675406563,0.01411286,99438.0,99422.0,0.00120681]
[1738675406925,0.00496617,99437.0,99431.0,0.023]
[1738675407054,0.00496617,99437.0,99431.0,0.173857]
[1738675407265,0.150838,99445.0,99431.0,0.173857]
[1738675407464,0.00496617,99436.0,99430.0,0.023]
[1738675407684,0.10238506,99446.0,99430.0,0.023]
[1738675407888,0.00496617,99435.0,99434.0,0.150852]
[1738675408155,0.150834,99447.0,99433.0,0.173855]
[1738675408489,0.00496617,99446.0,99432.0,0.023]
[1738675408812,0.15580217,99446.0,99432.0,0.023]
[1738675409034,0.00496617,99446.0,99432.0,0.05931705]
[1738675409239,0.30350106,99445.0,99432.0,0.023]
[1738675409433,0.10739924,99445.0,99432.0,0.023]
[1738675409638,0.13597266,99442.0,99433.0,0.01977796]
[1738675410004,0.13597266,99442.0,99434.0,0.023]
[1738675410005,0.201128,99439.0,99434.0,0.023]
[1738675410203,0.150852,99435.0,99434.0,0.023]
[1738675410468,0.201124,99442.0,99434.0,0.023]
[1738675410672,0.00501418,99435.0,99434.0,0.04177796]
[1738675411193,0.150846,99439.0,99434.0,0.04177796]
[1738675411460,0.10238506,99445.0,99434.0,0.04177796]
[1738675411662,0.10238506,99445.0,99412.0,0.01420331]
[1738675411663,0.00501418,99438.0,99429.0,0.023]
[1738675411795,0.150843,99441.0,99429.0,0.023]
[1738675412000,0.00505591,99440.0,99432.0,0.001]
[1738675412429,0.00505591,99440.0,99428.0,0.023]
[1738675412642,0.00505591,99440.0,99375.0,0.4925475]
[1738675412845,0.13690091,99440.0,99428.0,0.023]
[1738675413208,0.150839,99444.0,99421.0,0.023]
[1738675413412,0.3217,99448.0,99425.0,0.224156]
[1738675413609,0.3217,99448.0,99440.0,0.023]
[1738675413812,0.472532,99448.0,99435.0,0.023]
[1738675414034,0.3217,99448.0,99438.0,0.023]
[1738675414234,0.3217,99448.0,99437.0,0.023]
[1738675414617,0.3217,99448.0,99434.0,0.023]
[1738675414925,0.3217,99448.0,99439.0,0.023]
[1738675415166,0.201112,99447.0,99439.0,0.023]
[1738675415369,0.150834,99447.0,99439.0,0.023]
[1738675415621,0.3217,99448.0,99439.0,0.023]
[1738675415937,0.3217,99448.0,99441.0,0.023]
[1738675416146,0.150839,99444.0,99441.0,0.023]
[1738675416525,0.3217,99448.0,99441.0,0.023]
[1738675416728,0.150839,99444.0,99441.0,0.023]
[1738675416950,0.150836,99446.0,99441.0,0.023]
[1738675417345,0.0001068,99449.0,99441.0,0.023]
[1738675417548,0.150848,99438.0,99425.0,0.150867]
[1738675417761,0.150852,99435.0,99424.0,0.0792]
[1738675417965,0.10238506,99434.0,99417.0,0.0824]
[1738675418185,0.201162,99422.0,99403.0,0.0824]
[1738675418383,0.13597266,99420.0,99403.0,0.0824]
[1738675418624,0.150893,99408.0,99403.0,0.0824]
[1738675418932,0.10238506,99419.0,99396.0,0.0798]
[1738675419344,0.150888,99412.0,99400.0,0.150904]
[1738675419548,0.10238506,99419.0,99397.0,0.00120713]
[1738675419747,0.20117,99418.0,99398.0,0.03280504]
[1738675419947,0.150884,99414.0,99403.0,0.1509]
[1738675420071,0.10238506,99417.0,99406.0,0.150894]
[1738675420271,0.10238506,99417.0,99398.0,0.03280504]
[1738675420272,0.38207966,99450.0,99407.0,0.023]
[1738675420489,0.150866,99426.0,99415.0,0.023]
[1738675420693,0.150866,99426.0,99416.0,0.0982]
[1738675421321,0.150864,99428.0,99416.0,0.0982]
[1738675421551,0.150864,99428.0,99425.0,0.001]
[1738675421755,0.150864,99427.0,99425.0,0.001]
[1738675422274,0.43837905,99431.0,99416.0,0.0982]
[1738675422442,0.150868,99425.0,99416.0,0.0982]
[1738675422641,0.10238506,99424.0,99407.0,0.150894]
[1738675422998,0.10238506,99424.0,99406.0,0.023]
[1738675423141,0.13597266,99420.0,99395.0,0.201215]
[1738675423338,0.10238506,99419.0,99396.0,0.0793]
[1738675423535,0.201172,99417.0,99407.0,0.002]
[1738675423777,0.15089,99410.0,99407.0,0.002]
[1738675423984,0.201176,99415.0,99407.0,0.002]
[1738675424309,0.150889,99411.0,99397.0,0.173909]
[1738675424461,0.15089,99410.0,99397.0,0.173909]
[1738675424810,0.150887,99412.0,99399.0,0.023]
[1738675425157,0.10238506,99416.0,99397.0,0.023]
[1738675425364,0.150888,99411.0,99407.0,0.002]
[1738675425559,0.150883,99415.0,99407.0,0.002]
[1738675425766,0.150887,99412.0,99407.0,0.002]
[1738675425959,0.10238506,99416.0,99407.0,0.002]
[1738675426188,0.150891,99410.0,99407.0,0.002]
[1738675426359,0.150887,99412.0,99407.0,0.002]
[1738675426978,0.150887,99412.0,99400.0,0.023]
[1738675427376,0.10238506,99416.0,99397.0,0.176908]
[1738675427551,0.150888,99412.0,99397.0,0.174908]
[1738675427753,0.0456,99437.0,99401.0,0.023]
[1738675427964,0.01425081,99430.0,99406.0,0.201193]
[1738675428168,0.15022347,99430.0,99403.0,0.0796]
[1738675428385,0.15087,99424.0,99407.0,0.002]
[1738675428622,0.47257,99423.0,99409.0,0.150891]
[1738675428775,0.472571,99423.0,99407.0,0.150893]
[1738675429199,0.150874,99421.0,99405.0,0.150896]
[1738675430302,0.150872,99422.0,99406.0,0.023]
[1738675430504,0.150873,99421.0,99406.0,0.023]
[1738675430682,0.150876,99420.0,99404.0,0.023]
[1738675430882,0.522862,99423.0,99404.0,0.023]
[1738675431180,0.522862,99423.0,99406.0,0.023]
[1738675431316,0.3217,99423.0,99408.0,0.150892]
[1738675431520,0.3217,99423.0,99409.0,0.023]
[1738675431725,0.150873,99421.0,99409.0,0.023]
[1738675431924,0.150873,99421.0,99406.0,0.00022428]
[1738675432126,0.150878,99418.0,99406.0,0.00022428]
[1738675432326,0.15088,99417.0,99407.0,0.001]
[1738675432533,0.3217,99423.0,99407.0,0.001]
[1738675432733,0.150887,99412.0,99407.0,0.001]
[1738675432984,0.150885,99414.0,99407.0,0.001]
[1738675433280,0.20117,99419.0,99407.0,0.001]
[1738675433498,0.10238506,99422.0,99407.0,0.001]
[1738675433869,0.15088,99417.0,99407.0,0.001]
[1738675434066,0.150876,99419.0,99407.0,0.001]
[1738675434272,0.150876,99419.0,99408.0,0.023]
[1738675434476,0.201166,99420.0,99408.0,0.023]
[1738675434672,0.30355106,99420.0,99407.0,0.001]
[1738675435091,0.30355106,99420.0,99408.0,0.023]
[1738675435298,0.150881,99416.0,99408.0,0.023]
[1738675435646,0.10238506,99420.0,99407.0,0.001]
[1738675435771,0.150882,99416.0,99407.0,0.001]
[1738675436677,0.150882,99416.0,99406.0,0.00022428]
[1738675436866,0.150883,99415.0,99406.0,0.00122428]
[1738675437102,0.150883,99415.0,99408.0,0.002]
[1738675437305,0.150879,99417.0,99408.0,0.002]
[1738675437440,0.150879,99417.0,99406.0,0.00122428]
[1738675437640,0.150882,99416.0,99406.0,0.00122428]
[1738675437846,0.150883,99415.0,99408.0,0.023]
[1738675438226,0.150883,99415.0,99406.0,0.00022428]
[1738675438631,0.150883,99415.0,99408.0,0.002]
[1738675438843,0.150883,99415.0,99406.0,0.00022428]
[1738675439608,0.10238506,99415.0,99406.0,0.00022428]
[1738675439759,0.150894,99407.0,99406.0,0.00022428]
[1738675440812,0.25327906,99407.0,99406.0,0.00022428]
[1738675441554,0.10238506,99407.0,99406.0,0.00022428]
[1738675441794,0.150893,99408.0,99406.0,0.00022428]
[1738675441991,0.01874073,99407.0,99406.0,0.00222428]
[1738675442398,0.01874073,99407.0,99406.0,0.00322428]
[1738675442884,0.15063373,99408.0,99406.0,0.00322428]
[1738675443230,0.15063373,99408.0,99406.0,0.00222428]
[1738675443423,0.150883,99415.0,99406.0,0.00222428]
[1738675443665,0.13597266,99430.0,99407.0,0.023]
[1738675443867,0.0001068,99416.0,99407.0,0.023]
[1738675444070,0.0001068,99416.0,99406.0,0.00022428]
[1738675444243,0.01391683,99416.0,99406.0,0.00022428]
[1738675444452,0.150889,99411.0,99407.0,0.01038243]
[1738675444655,0.150885,99414.0,99407.0,0.03338243]
[1738675444856,0.0001068,99416.0,99408.0,0.023]
[1738675445034,0.0001068,99416.0,99415.0,0.023]
[1738675445476,0.0001068,99416.0,99407.0,0.01038243]
[1738675445477,0.0001068,99416.0,99413.0,0.023]
[1738675445669,0.0001068,99416.0,99408.0,0.023]
[1738675445889,0.0001068,99416.0,99412.0,0.023]
[1738675446070,0.0001068,99416.0,99410.0,0.023]
[1738675446518,0.0001068,99416.0,99408.0,0.023]
[1738675447417,0.0001068,99416.0,99412.0,0.023]
[1738675447584,0.0001068,99416.0,99411.0,0.023]
[1738675447993,0.0001068,99416.0,99408.0,0.20119]
[1738675447994,0.0001068,99416.0,99412.0,0.150886]
[1738675448343,0.0001068,99416.0,99413.0,0.023]
[1738675448547,0.0001068,99416.0,99410.0,0.150888]
[1738675448746,0.0001068,99416.0,99411.0,0.150888]
[1738675448895,0.0001068,99416.0,99412.0,0.023]
[1738675449093,0.0001068,99416.0,99414.0,0.173883]
[1738675449368,0.0001068,99416.0,99414.0,0.023]
[1738675450469,0.0001068,99416.0,99414.0,0.173882]
[1738675450668,0.0001068,99416.0,99415.0,0.10210695]
[1738675450888,0.0001068,99416.0,99415.0,0.1009]
[1738675451278,0.0001068,99416.0,99415.0,0.10210689]
[1738675452287,0.0001068,99416.0,99415.0,0.35416706]
[1738675452505,0.0001068,99416.0,99415.0,0.40096706]
[1738675452746,0.20111,99448.0,99432.0,0.150856]
[1738675452948,0.150832,99448.0,99433.0,0.023]
[1738675453237,0.150832,99448.0,99435.0,0.023]
[1738675453406,0.150828,99451.0,99437.0,0.023]
[1738675453599,0.150827,99452.0,99438.0,0.023]
[1738675453792,0.150827,99452.0,99438.0,0.173846]
[1738675454017,0.150828,99451.0,99436.0,0.173849]
[1738675454275,0.10238506,99454.0,99434.0,0.150852]
[1738675454432,0.15083,99450.0,99436.0,0.023]
[1738675454807,0.202102,99452.0,99437.0,0.023]
[1738675455030,0.150829,99450.0,99437.0,0.023]
[1738675455208,0.150831,99449.0,99434.0,0.150853]
[1738675455432,0.150831,99449.0,99436.0,0.023]
[1738675455602,0.0001068,99449.0,99436.0,0.023]
[1738675455817,0.0001068,99449.0,99433.0,0.023]
[1738675456262,0.0001068,99449.0,99448.0,0.1033]
[1738675456724,0.0001068,99449.0,99448.0,0.10450644]
[1738675456930,0.0001068,99449.0,99448.0,0.1033]
[1738675457337,0.0001068,99449.0,99448.0,0.10450644]
[1738675457865,0.1831708,99471.0,99459.0,0.023]
[1738675458257,0.201059,99473.0,99461.0,0.023]
[1738675458474,0.33703566,99471.0,99454.0,0.023]
[1738675458649,0.402134,99469.0,99448.0,0.002]
[1738675458876,0.150825,99453.0,99448.0,0.002]
[1738675459046,0.13597266,99460.0,99449.0,0.023]
[1738675459253,0.150828,99451.0,99449.0,0.023]
[1738675459460,0.23835772,99460.0,99442.0,0.023]
[1738675459461,0.150834,99447.0,99442.0,0.023]
[1738675459624,0.201087,99459.0,99444.0,0.023]
[1738675459829,0.150833,99448.0,99444.0,0.023]
[1738675460029,0.150833,99448.0,99442.0,0.023]
[1738675460226,0.01343689,99455.0,99429.0,0.0827]
[1738675460452,0.150844,99441.0,99429.0,0.0827]
[1738675460668,0.150844,99440.0,99430.0,0.023]
[1738675460870,0.201107,99450.0,99431.0,0.02535716]
[1738675461032,0.15084,99443.0,99431.0,0.150857]
[1738675461235,0.150841,99442.0,99431.0,0.150857]
[1738675461435,0.150841,99442.0,99430.0,0.023]
[1738675461893,0.150844,99441.0,99430.0,0.023]
[1738675462099,0.553025,99453.0,99430.0,0.173858]
[1738675462305,0.150846,99439.0,99430.0,0.023]
[1738675462440,0.150842,99442.0,99430.0,0.023]
[1738675462647,0.150849,99437.0,99431.0,0.002]
[1738675462847,0.201125,99441.0,99432.0,0.023]
[1738675463056,0.150841,99443.0,99432.0,0.023]
[1738675463264,0.10238506,99452.0,99432.0,0.023]
[1738675463577,0.10238506,99452.0,99435.0,0.023]
[1738675463747,0.10238506,99452.0,99432.0,0.023]
[1738675464154,0.01345928,99456.0,99433.0,0.023]
[1738675464369,0.150828,99451.0,99437.0,0.023]
[1738675464568,0.150835,99447.0,99437.0,0.023]
[1738675464706,0.150835,99447.0,99435.0,0.023]
[1738675464908,0.10238506,99455.0,99435.0,0.023]
[1738675465108,0.150834,99447.0,99437.0,0.023]
[1738675465617,0.10238506,99455.0,99437.0,0.023]
[1738675465812,0.10238506,99455.0,99433.0,0.023]
[1738675466011,0.150839,99444.0,99435.0,0.002]
[1738675466213,0.15084,99443.0,99436.0,0.023]
[1738675466463,0.2011,99453.0,99436.0,0.023]
[1738675466662,0.150837,99445.0,99436.0,0.048856]
[1738675467080,0.201102,99452.0,99436.0,0.048856]
[1738675467283,0.201104,99451.0,99436.0,0.048856]
[1738675467462,0.150833,99448.0,99436.0,0.048856]
[1738675467635,0.10238506,99453.0,99437.0,0.00022428]
[1738675467636,0.150836,99446.0,99437.0,0.00022428]
[1738675468042,0.150843,99441.0,99437.0,0.00022428]
[1738675468259,0.201104,99451.0,99437.0,0.00022428]
[1738675468458,0.10238506,99453.0,99437.0,0.00022428]
[1738675468800,0.150844,99440.0,99438.0,0.023]
[1738675468999,0.150844,99440.0,99437.0,0.00022428]
[1738675469205,0.201121,99443.0,99437.0,0.00022428]
[1738675469206,0.150847,99438.0,99437.0,0.00022428]
[1738675469390,0.150847,99438.0,99437.0,0.00222428]
[1738675469765,0.150847,99438.0,99437.0,0.00022428]
[1738675470558,0.10238506,99453.0,99437.0,0.00022428]
[1738675470687,0.150824,99454.0,99441.0,0.150842]
[1738675470897,0.2011,99453.0,99443.0,0.023]
[1738675471106,0.150833,99448.0,99440.0,0.023]
[1738675471331,0.16326343,99467.0,99440.0,0.023]
[1738675471563,0.15,99464.0,99440.0,0.023]
[1738675471698,0.150828,99451.0,99440.0,0.023]
[1738675471927,0.15,99459.0,99437.0,0.00022428]
[1738675472131,0.201091,99457.0,99437.0,0.00022428]
[1738675472327,0.10238506,99456.0,99443.0,0.002]
[1738675472534,0.10238506,99456.0,99437.0,0.00022428]
[1738675472770,0.150835,99446.0,99437.0,0.00022428]
[1738675472983,0.150835,99446.0,99440.0,0.002]
[1738675473169,0.150835,99446.0,99441.0,0.023]
[1738675473891,0.150835,99447.0,99441.0,0.023]
[1738675474071,0.150837,99445.0,99441.0,0.023]
[1738675474392,0.201102,99452.0,99441.0,0.023]
[1738675474640,0.150841,99443.0,99441.0,0.023]
[1738675475190,0.201112,99447.0,99441.0,0.023]
[1738675475387,0.150839,99444.0,99440.0,0.001]
[1738675475588,0.201112,99447.0,99440.0,0.001]
[1738675475790,0.150839,99444.0,99438.0,0.023]
[1738675475991,0.150841,99443.0,99441.0,0.001]
[1738675476197,0.150841,99442.0,99441.0,0.001]
[1738675476395,0.01285388,99452.0,99437.0,0.00022428]
[1738675476596,0.15,99469.0,99438.0,0.00808243]
[1738675476796,0.150824,99454.0,99439.0,0.023]
[1738675477020,0.15,99466.0,99446.0,0.023]
[1738675477200,0.15,99462.0,99446.0,0.023]
[1738675477400,0.150823,99454.0,99441.0,0.023]
[1738675477601,0.150824,99454.0,99441.0,0.023]
[1738675477805,0.150824,99454.0,99440.0,0.023]
[1738675478002,0.201094,99456.0,99440.0,0.174844]
[1738675478198,0.15113096,99461.0,99442.0,0.150841]
[1738675478403,0.150825,99453.0,99443.0,0.023]
[1738675478825,0.150825,99453.0,99442.0,0.023]
[1738675479025,0.150823,99455.0,99442.0,0.023]
[1738675479230,0.150823,99455.0,99440.0,0.150844]
[1738675479231,0.201094,99456.0,99444.0,0.023]
[1738675479445,0.01874842,99454.0,99444.0,0.023]
[1738675480259,0.01874842,99454.0,99446.0,0.023]
[1738675480440,0.01874842,99453.0,99447.0,0.00120654]
[1738675480854,0.01874842,99453.0,99447.0,0.00120655]
[1738675481366,0.01874842,99453.0,99446.0,0.00120655]
[1738675481567,0.0001068,99459.0,99446.0,0.023]
[1738675482511,0.0001068,99459.0,99446.0,0.173834]
[1738675482883,0.0001068,99459.0,99446.0,0.174834]
[1738675483330,0.0001068,99459.0,99446.0,0.024]
[1738675483863,0.0001068,99459.0,99446.0,0.174834]
[1738675484702,0.0001068,99459.0,99446.0,0.024]
[1738675485301,0.150828,99451.0,99446.0,0.001]
[1738675485654,0.150829,99450.0,99446.0,0.001]
[1738675485990,0.201102,99452.0,99446.0,0.001]
[1738675485991,0.150834,99447.0,99446.0,0.001]
[1738675486235,0.201089,99458.0,99446.0,0.001]
[1738675486431,0.15083,99450.0,99446.0,0.001]
[1738675486804,0.10238506,99457.0,99440.0,0.023]
[1738675487055,0.01876524,99449.0,99446.0,0.024]
[1738675487396,0.01876524,99449.0,99447.0,0.023]
[1738675487534,0.01876524,99449.0,99444.0,0.023]
[1738675487723,0.01876524,99449.0,99446.0,0.023]
[1738675488133,0.150817,99458.0,99444.0,0.173838]
[1738675488341,0.10238506,99458.0,99439.0,0.0805]
[1738675488563,0.201093,99456.0,99439.0,0.0805]
[1738675488803,0.10238506,99458.0,99440.0,0.023]
[1738675488958,0.201093,99456.0,99440.0,0.023]
[1738675489155,0.150833,99448.0,99446.0,0.001]
[1738675490467,0.150833,99448.0,99440.0,0.023]
[1738675490921,0.150831,99449.0,99446.0,0.001]
[1738675491130,0.10238506,99458.0,99446.0,0.001]
[1738675491274,0.0001068,99459.0,99446.0,0.001]
[1738675491275,0.150834,99447.0,99446.0,0.001]
[1738675491655,0.19962794,99447.0,99446.0,0.001]
[1738675492431,0.302013,99447.0,99446.0,0.001]
[1738675492735,0.150843,99441.0,99440.0,0.001]
[1738675492910,0.25322806,99441.0,99440.0,0.001]
[1738675493336,0.40322806,99441.0,99440.0,0.001]
[1738675493898,0.300846,99439.0,99438.0,0.00022428]
[1738675494103,0.40323106,99439.0,99438.0,0.00022428]
[1738675494344,0.452025,99439.0,99438.0,0.00022428]
[1738675494557,0.4927304,99439.0,99438.0,0.00022428]
[1738675494756,0.452025,99439.0,99438.0,0.00022428]
[1738675501943,0.19879394,99439.0,99438.0,0.00022428]
[1738675502166,0.04879394,99439.0,99438.0,0.00022428]
[1738675503160,0.10911394,99439.0,99438.0,0.00022428]
[1738675503339,0.04879394,99439.0,99438.0,0.17407128]
[1738675503540,0.201096,99455.0,99439.0,0.023]
[1738675503742,0.150829,99451.0,99439.0,0.023]
[1738675503960,0.150829,99451.0,99438.0,0.00222428]
[1738675504179,0.01306332,99450.0,99438.0,0.02322428]
[1738675504362,0.09008459,99459.0,99448.0,0.173832]
[1738675504709,0.09008459,99459.0,99448.0,0.023]
[1738675505144,0.09008459,99459.0,99448.0,0.06061585]
[1738675505343,0.09008459,99459.0,99448.0,0.06182239]
[1738675505546,0.09008459,99459.0,99448.0,0.06061585]
[1738675505724,0.09008459,99459.0,99448.0,0.13821585]
[1738675505725,0.0001068,99459.0,99448.0,0.13821585]
[1738675505940,0.0001068,99459.0,99448.0,0.1006]
[1738675507025,0.0001068,99459.0,99448.0,0.1016]
[1738675510905,0.1509228,99459.0,99448.0,0.1016]
[1738675511144,0.0001068,99459.0,99448.0,0.024]
[1738675511385,0.150829,99450.0,99448.0,0.024]
[1738675511625,0.150829,99450.0,99448.0,0.001]
[1738675512711,0.16329438,99450.0,99448.0,0.001]
[1738675513175,0.01246538,99450.0,99448.0,0.001]
[1738675513415,0.150829,99450.0,99448.0,0.001]
[1738675513834,0.25238506,99449.0,99448.0,0.001]
[1738675514054,0.33188506,99449.0,99448.0,0.001]
[1738675514255,0.15,99448.0,99438.0,0.00022428]
[1738675514461,0.300846,99439.0,99438.0,0.00022428]
[1738675514661,0.40323106,99439.0,99438.0,0.00022428]
[1738675515074,0.45198644,99439.0,99438.0,0.00022428]
[1738675515287,0.53740968,99439.0,99438.0,0.00022428]
[1738675515695,0.45198644,99439.0,99438.0,0.00022428]
[1738675517332,0.45198644,99439.0,99438.0,0.00122428]
[1738675517782,0.46425987,99439.0,99438.0,0.00122428]
[1738675517983,0.58925987,99439.0,99438.0,0.00122428]
[1738675518383,2.08925987,99439.0,99438.0,0.00122428]
[1738675518580,2.19175459,99439.0,99438.0,0.00122428]
[1738675518991,2.08925987,99439.0,99438.0,0.00122428]
[1738675519352,0.58925987,99439.0,99438.0,0.00122428]
[1738675519770,2.08925987,99439.0,99438.0,0.00122428]
[1738675520169,0.58925987,99439.0,99438.0,0.00122428]
[1738675520853,2.08925987,99439.0,99438.0,0.00122428]
[1738675521067,2.19175459,99439.0,99438.0,0.00122428]
[1738675521682,2.08925987,99439.0,99438.0,0.00122428]
[1738675524373,0.301706,99435.0,99399.0,0.08024193]
[1738675524578,0.150894,99407.0,99399.0,0.08024193]
[1738675524811,0.25327906,99407.0,99399.0,0.08024193]
[1738675525025,0.25327906,99407.0,99390.0,0.00022428]
[1738675525026,0.25327906,99407.0,99392.0,0.023]
[1738675525767,0.27203113,99407.0,99392.0,0.023]
[1738675525969,0.01875207,99407.0,99392.0,0.023]
[1738675526179,0.01875207,99407.0,99396.0,0.150911]
[1738675526392,0.01875207,99407.0,99397.0,0.023]
[1738675526601,0.16964607,99407.0,99406.0,0.00222428]
[1738675526810,0.01875207,99407.0,99406.0,0.00222428]
[1738675527018,0.150894,99407.0,99406.0,0.00322428]
[1738675527463,0.01235822,99408.0,99406.0,0.00322428]
[1738675527669,0.150894,99407.0,99406.0,0.00322428]
[1738675527870,0.131894,99407.0,99406.0,0.00222428]
[1738675528090,0.131894,99407.0,99406.0,0.00022428]
[1738675529476,0.23427906,99407.0,99406.0,0.00022428]
[1738675529681,0.25856109,99407.0,99406.0,0.00222428]
[1738675529886,0.38427906,99407.0,99406.0,0.00022428]
[1738675530211,0.44460906,99407.0,99406.0,0.00022428]
[1738675530831,0.49321669,99407.0,99406.0,0.00022428]
[1738675531073,1.99321669,99407.0,99406.0,0.00022428]
[1738675531277,2.06119693,99407.0,99406.0,0.00022428]
[1738675531495,0.300914,99394.0,99390.0,0.00022428]
[1738675531742,0.46362906,99394.0,99390.0,0.00022428]
[1738675533034,0.59212906,99394.0,99390.0,0.00022428]
[1738675533242,0.60485697,99394.0,99390.0,0.00022428]
[1738675533462,0.6534646,99394.0,99390.0,0.00022428]
[1738675533671,0.5931346,99394.0,99390.0,0.00022428]
[1738675533881,0.60541435,99394.0,99390.0,0.00022428]
[1738675534086,2.0931346,99394.0,99390.0,0.00022428]
[1738675534300,2.0941346,99394.0,99393.0,0.00122428]
[1738675534428,2.0931346,99394.0,99393.0,0.00022428]
[1738675534851,2.0941346,99394.0,99393.0,0.00122428]
[1738675535693,2.13376325,99394.0,99393.0,0.00122428]
[1738675536277,2.13276325,99394.0,99393.0,0.00022428]
[1738675536741,2.13376325,99394.0,99393.0,0.00122428]
[1738675537148,2.13276325,99394.0,99393.0,0.00022428]
[1738675537527,2.13376325,99394.0,99393.0,0.00122428]
[1738675538347,2.13276325,99394.0,99393.0,0.00022428]
[1738675539632,0.63276325,99394.0,99393.0,0.00022428]
[1738675539864,0.5941346,99394.0,99393.0,0.00122428]
[1738675540247,0.5931346,99394.0,99393.0,0.00022428]
[1738675540469,0.5941346,99394.0,99393.0,0.00122428]
[1738675540674,0.4656346,99394.0,99393.0,0.00122428]
[1738675540795,0.4646346,99394.0,99393.0,0.00022428]